bitfinex/quotes_ETHUSD_20251017
["timestamp","ask_amount","ask_price","bid_price","bid_amount"]
[1760728313703,0.002,3853.6,3853.5,0.1296]
[1760728313911,0.002,3853.6,3853.4,2.59509104]
[1760728314114,0.002,3853.6,3853.3,3.19626014]
[1760728314316,0.002,3853.6,3853.3,0.6011]
[1760728314515,0.002,3853.6,3853.4,2.59511022]
[1760728314732,0.002,3853.6,3853.4,3.1971036]
[1760728314935,0.002,3853.6,3853.4,3.6686036]
[1760728315203,0.002,3853.6,3853.5,3.06654346]
[1760728316245,0.002,3853.6,3853.5,2.59504346]
[1760728316622,0.002,3853.6,3853.3,0.1296]
[1760728316803,0.002,3853.6,3852.9,2.59539652]
[1760728317004,0.002,3853.6,3853.0,3.24516868]
[1760728317220,0.002,3853.6,3853.1,0.2337]
[1760728317417,0.002,3853.6,3853.3,2.59516154]
[1760728317624,0.002,3853.6,3853.1,2.82896305]
[1760728317829,0.2043,3853.5,3853.0,0.1306]
[1760728318030,0.002,3853.6,3853.0,0.87470651]
[1760728318342,0.002,3853.6,3853.1,2.82898749]
[1760728318545,0.002,3853.6,3853.1,0.2337]
[1760728318733,2.59698284,3853.6,3853.0,0.001]
[1760728318922,0.1296,3853.4,3853.0,0.001]
[1760728319126,0.1296,3853.4,3853.0,2.59637607]
[1760728319329,0.1296,3853.4,3853.1,2.5953121]
[1760728319636,0.1296,3853.4,3853.1,2.59530797]
[1760728319844,0.1296,3853.4,3853.0,0.001]
[1760728320451,2.69517815,3853.3,3853.0,0.001]
[1760728320638,0.04523547,3853.4,3853.0,0.001]
[1760728320832,0.1296,3853.3,3853.0,0.001]
[1760728322038,0.07124139,3853.4,3853.0,0.001]
[1760728322238,0.1296,3853.1,3853.0,0.001]
[1760728323737,0.17483547,3853.4,3853.1,2.5952782]
[1760728323944,0.17483547,3853.4,3853.2,0.7052]
[1760728324128,0.17483547,3853.4,3853.2,0.73115245]
[1760728324454,0.04523547,3853.4,3853.1,0.1296]
[1760728324639,0.04523547,3853.4,3853.0,0.001]
[1760728324640,0.1296,3853.3,3853.0,0.001]
[1760728324841,0.1296,3853.1,3853.0,0.001]
[1760728326070,0.1296,3853.1,3853.0,2.59638022]
[1760728326369,0.002,3853.6,3853.1,2.5952503]
[1760728326555,0.002,3853.6,3853.5,2.59504346]
[1760728326868,0.002,3853.6,3853.5,2.72464346]
[1760728327066,0.002,3853.6,3853.5,3.15254346]
[1760728327365,0.002,3853.6,3853.5,4.00834475]
[1760728327665,0.002,3853.6,3853.5,3.58044475]
[1760728328792,0.002,3853.6,3853.5,2.72464346]
[1760728328973,0.002,3853.6,3853.5,0.1296]
[1760728329170,0.105,3853.6,3853.0,0.001]
[1760728329374,0.2346,3853.6,3853.0,0.001]
[1760728329547,0.02600592,3853.5,3853.0,0.001]
[1760728329869,2.64032619,3853.5,3853.0,0.001]
[1760728330173,0.103,3853.4,3853.0,0.001]
[1760728330369,2.59531286,3853.1,3853.0,0.001]
[1760728330870,2.69831286,3853.1,3853.0,0.001]
[1760728331375,2.74355318,3853.1,3853.0,0.001]
[1760728331573,0.04524032,3853.1,3853.0,0.001]
[1760728332952,0.14824032,3853.1,3853.0,0.001]
[1760728333170,0.04524032,3853.1,3853.0,0.001]
[1760728333671,2.74355318,3853.1,3853.0,0.001]
[1760728333872,3.40703157,3853.1,3853.0,0.001]
[1760728334483,0.57911871,3853.1,3853.0,0.001]
[1760728334958,3.20043749,3853.1,3853.0,0.001]
[1760728335160,0.57911871,3853.1,3853.0,0.001]
[1760728335375,0.04524032,3853.1,3853.0,0.001]
[1760728335678,0.04724032,3853.1,3853.0,0.001]
[1760728337584,2.74555318,3853.1,3853.0,0.001]
[1760728337749,4.47355318,3853.1,3853.0,0.001]
[1760728337947,21.5115411,3853.1,3853.0,0.001]
[1760728338166,9.31039026,3853.1,3853.0,0.001]
[1760728338454,8.45676786,3853.1,3853.0,0.001]
[1760728338778,7.24391586,3853.1,3853.0,0.001]
[1760728339074,6.65586786,3853.1,3853.0,0.001]
[1760728340089,9.96857086,3853.1,3853.0,0.001]
[1760728340660,7.22157086,3853.1,3853.0,0.001]
[1760728340987,5.49594265,3853.1,3853.0,0.001]
[1760728341193,11.45008565,3853.1,3853.0,0.001]
[1760728341505,12.08212965,3853.1,3853.0,0.001]
[1760728341954,5.49594265,3853.1,3853.0,0.001]
[1760728342165,40.94141526,3853.1,3853.0,0.001]
[1760728342355,39.65891526,3853.1,3853.0,0.001]
[1760728342556,37.64244326,3853.1,3853.0,0.001]
[1760728342760,44.03244326,3853.1,3853.0,0.001]
[1760728342977,16.76706331,3852.7,3852.6,0.001]
[1760728343197,26.6803007,3852.7,3852.6,0.001]
[1760728343495,17.5912247,3852.7,3852.6,0.001]
[1760728343843,17.63648154,3852.7,3852.6,0.001]
[1760728343995,24.02648154,3852.7,3852.6,0.001]
[1760728344165,42.97089554,3852.7,3852.6,0.001]
[1760728344363,2.59605399,3852.0,3851.0,0.001]
[1760728344671,48.87018,3852.0,3851.0,0.001]
[1760728344882,48.97318,3852.0,3851.0,0.001]
[1760728345090,31.70428326,3852.0,3851.0,0.001]
[1760728345473,28.38089626,3852.0,3851.1,0.2292]
[1760728345817,4.7313455,3852.0,3851.3,3.06501964]
[1760728346117,4.7313455,3852.0,3851.6,0.4675]
[1760728346270,11.6364425,3852.0,3851.3,0.001]
[1760728347196,17.9090645,3852.0,3851.3,0.001]
[1760728347402,32.90613911,3852.0,3851.3,0.001]
[1760728347803,39.29613911,3852.0,3851.3,0.001]
[1760728348003,26.86648514,3852.0,3851.3,0.001]
[1760728348203,29.35737114,3852.0,3851.3,0.001]
[1760728348411,11.76641053,3852.0,3851.3,0.001]
[1760728348612,14.01078153,3852.0,3851.3,0.001]
[1760728349177,18.43126393,3852.0,3851.3,0.001]
[1760728349577,15.23059693,3852.0,3851.3,0.001]
[1760728349788,11.81166893,3852.0,3851.5,0.4675]
[1760728350206,11.1666039,3852.0,3851.3,0.001]
[1760728350416,11.1666039,3852.0,3851.6,0.4675]
[1760728351416,11.1666039,3852.0,3851.3,0.001]
[1760728351910,11.1666039,3852.0,3851.5,0.4675]
[1760728352094,11.1666039,3852.0,3851.3,0.001]
[1760728352299,11.1666039,3852.0,3851.5,0.4675]
[1760728353320,10.75931239,3852.0,3851.5,0.4675]
[1760728353719,10.75931239,3852.0,3851.5,0.4685]
[1760728353912,10.75931239,3852.0,3851.5,0.001]
[1760728354387,10.86231239,3852.0,3851.5,0.001]
[1760728354586,28.57658339,3852.0,3851.5,0.001]
[1760728354981,25.81322039,3852.0,3851.5,0.001]
[1760728355194,22.97973047,3852.0,3851.5,0.001]
[1760728355403,42.52976247,3852.0,3851.5,0.001]
[1760728355631,35.24923547,3852.0,3851.5,0.001]
[1760728355840,35.35223547,3852.0,3851.5,0.001]
[1760728356545,30.74717351,3852.0,3851.5,0.001]
[1760728357051,45.74424812,3852.0,3851.5,0.001]
[1760728357395,52.38254112,3852.0,3851.5,0.001]
[1760728357639,51.32798272,3852.0,3851.5,0.001]
[1760728358220,49.97771072,3852.0,3851.5,0.001]
[1760728358435,46.98580572,3852.0,3851.5,0.001]
[1760728358640,36.34401772,3852.0,3851.5,0.001]
[1760728359331,27.88884972,3852.0,3851.5,0.001]
[1760728359500,39.61995472,3852.0,3851.5,0.001]
[1760728359912,36.33130872,3852.0,3851.5,0.001]
[1760728360112,36.37656971,3852.0,3851.5,0.001]
[1760728360338,33.82432171,3852.0,3851.5,0.001]
[1760728360498,36.43500271,3852.0,3851.5,0.001]
[1760728361407,43.49092071,3852.0,3851.5,0.001]
[1760728361615,35.83632771,3852.0,3851.5,0.001]
[1760728361812,33.21747071,3852.0,3851.5,0.001]
[1760728362014,15.39176506,3852.0,3851.5,0.001]
[1760728362238,12.42676506,3852.0,3851.9,0.4685]
[1760728362396,18.21267906,3852.0,3851.9,0.001]
[1760728362605,26.04545306,3852.0,3851.9,0.001]
[1760728363639,29.74010906,3852.0,3851.9,0.001]
[1760728363838,26.86929306,3852.0,3851.9,0.001]
[1760728364030,20.95707406,3852.0,3851.9,0.001]
[1760728364541,23.57251906,3852.0,3851.9,0.001]
[1760728364730,18.59428906,3852.0,3851.9,0.001]
[1760728365532,29.36142006,3852.0,3851.9,0.001]
[1760728365843,29.47495457,3852.0,3851.9,0.001]
[1760728366145,29.57910699,3852.0,3851.9,0.001]
[1760728366522,43.04120699,3852.0,3851.9,0.001]
[1760728367132,29.45728799,3852.0,3851.9,0.001]
[1760728367336,29.412027,3852.0,3851.9,0.001]
[1760728367712,33.107705,3852.0,3851.9,0.001]
[1760728368124,31.418356,3852.0,3851.9,0.001]
[1760728368722,31.988886,3852.0,3851.9,0.001]
[1760728369642,38.606829,3852.0,3851.9,0.001]
[1760728370143,17.95655834,3852.0,3851.9,0.001]
[1760728370348,17.85240592,3852.0,3851.9,0.001]
[1760728370728,29.19073792,3852.0,3851.9,0.001]
[1760728370929,22.84229492,3852.0,3851.9,0.001]
[1760728371127,22.94529492,3852.0,3851.9,0.001]
[1760728371528,16.55529492,3852.0,3851.9,0.001]
[1760728371754,21.61923992,3852.0,3851.9,0.001]
[1760728372148,21.51623992,3852.0,3851.9,0.001]
[1760728372355,13.88500092,3852.0,3851.9,0.001]
[1760728372551,13.47771141,3852.0,3851.9,0.001]
[1760728372744,13.44976741,3852.0,3851.9,0.001]
[1760728372944,13.20284741,3852.0,3851.9,0.001]
[1760728373252,10.88209941,3852.0,3851.9,0.001]
[1760728373451,7.41132241,3852.0,3851.9,0.001]
[1760728373755,18.44205341,3852.0,3851.9,0.001]
[1760728374622,18.54505341,3852.0,3851.9,0.001]
[1760728374826,30.44429541,3852.0,3851.9,0.001]
[1760728375540,24.97434541,3852.0,3851.9,0.001]
[1760728375735,22.61855526,3852.0,3851.9,0.001]
[1760728375963,13.66459226,3852.0,3851.9,0.001]
[1760728376449,13.61932592,3852.0,3851.9,0.001]
[1760728376756,6.39881292,3852.0,3851.9,0.001]
[1760728376931,18.60679092,3852.0,3851.9,0.001]
[1760728377139,15.19144892,3852.0,3851.9,0.001]
[1760728377856,25.09372192,3852.0,3851.9,0.001]
[1760728378034,23.72647092,3852.0,3851.9,0.001]
[1760728378353,11.30413092,3852.0,3851.9,0.001]
[1760728378659,11.40713092,3852.0,3851.9,0.001]
[1760728378870,28.79944592,3852.0,3851.9,0.001]
[1760728379033,28.48274592,3852.0,3851.9,0.001]
[1760728379243,27.64926892,3852.0,3851.9,0.001]
[1760728379456,27.30007392,3852.0,3851.9,0.001]
[1760728379764,26.37885647,3852.0,3851.9,0.001]
[1760728380051,26.36800147,3852.0,3851.9,0.001]
[1760728380565,12.43676743,3851.4,3851.3,0.001]
[1760728380772,13.72820843,3851.4,3851.3,0.001]
[1760728380954,16.78425325,3851.4,3851.3,0.001]
[1760728381134,17.2368652,3851.4,3851.3,0.001]
[1760728381462,12.8189582,3851.4,3851.3,0.001]
[1760728381635,9.7379132,3851.4,3851.3,0.4452]
[1760728381834,4.77707038,3851.4,3851.3,0.4452]
[1760728382034,18.2655903,3851.4,3851.3,0.001]
[1760728382261,18.23958438,3851.4,3851.3,0.001]
[1760728382457,12.84074238,3851.4,3851.3,0.001]
[1760728382762,4.77707038,3851.4,3851.3,0.4452]
[1760728383971,2.18061195,3851.4,3851.3,0.4452]
[1760728384169,0.45261195,3851.4,3851.3,0.4452]
[1760728384470,0.45261195,3851.4,3851.3,3.04172584]
[1760728384471,0.0452655,3851.4,3851.3,3.04172584]
[1760728384764,0.0452655,3851.4,3851.3,3.62891196]
[1760728386673,0.0452655,3851.4,3851.3,1.03238612]
[1760728386874,0.0452655,3851.4,3851.3,3.04172584]
[1760728387379,2.59614787,3851.9,3851.3,0.4452]
[1760728387683,0.04525323,3851.7,3851.3,0.4452]
[1760728387878,0.04525323,3851.7,3851.3,3.0417194]
[1760728388080,1.728,3852.0,3851.4,2.5964434]
[1760728388383,1.728,3852.0,3851.5,0.4442]
[1760728388752,2.59605841,3852.0,3851.5,0.4442]
[1760728388952,0.002,3852.1,3851.5,0.4442]
[1760728389682,0.002,3852.1,3851.7,2.59620336]
[1760728389852,0.002,3852.1,3851.5,0.4442]
[1760728390054,0.002,3852.1,3851.8,2.59613151]
[1760728390256,0.002,3851.9,3851.8,2.59613151]
[1760728390561,0.002,3851.9,3851.8,0.4442]
[1760728390983,0.04724938,3851.9,3851.8,0.4442]
[1760728392003,0.04724938,3851.9,3851.5,0.1296]
[1760728392004,0.04724938,3851.9,3851.3,0.4452]
[1760728392290,0.1296,3851.6,3851.3,0.4452]
[1760728392853,0.1296,3851.6,3851.4,0.4442]
[1760728393054,2.59639101,3851.5,3851.3,0.001]
[1760728393261,2.59639101,3851.5,3851.3,0.4452]
[1760728393575,2.72593689,3851.6,3851.4,0.4442]
[1760728393783,0.1296,3851.6,3851.4,0.4442]
[1760728393978,2.59639101,3851.5,3851.4,0.4442]
[1760728394192,2.59645843,3851.4,3851.3,0.001]
[1760728394582,2.64171269,3851.4,3851.3,0.4452]
[1760728395268,0.04525426,3851.4,3851.3,0.4452]
[1760728395473,2.64171269,3851.4,3851.3,0.4452]
[1760728395796,0.04525426,3851.4,3851.3,0.4452]
[1760728395980,0.04525426,3851.4,3851.3,3.04172584]
[1760728396300,0.04525426,3851.4,3851.3,1.0457476]
[1760728396590,0.04525426,3851.4,3851.3,0.4452]
[1760728397601,0.1296,3851.6,3851.3,0.4452]
[1760728397768,0.1296,3851.6,3851.4,0.4442]
[1760728398171,0.02600592,3851.5,3851.3,0.001]
[1760728398663,1.8576,3851.6,3851.3,0.4452]
[1760728399000,1.8576,3851.6,3851.3,0.001]
[1760728399207,1.8576,3851.6,3851.4,0.4442]
[1760728399690,0.1296,3851.6,3851.3,0.001]
[1760728399866,0.1296,3851.6,3851.5,0.4442]
[1760728400393,0.17485233,3851.6,3851.5,0.4442]
[1760728401917,0.17485233,3851.6,3851.3,0.001]
[1760728401918,1.90285233,3851.6,3851.3,0.001]
[1760728402094,2.77118127,3851.6,3851.3,0.4568]
[1760728402415,2.72605843,3851.4,3851.3,0.001]
[1760728403939,4.55305843,3851.4,3851.3,0.001]
[1760728405808,4.57906435,3851.4,3851.3,0.001]
[1760728406118,8.83247243,3851.4,3851.3,0.001]
[1760728406686,9.23980073,3851.4,3851.3,0.001]
[1760728407011,13.16831191,3851.4,3851.3,0.001]
[1760728407717,10.11990491,3851.4,3851.3,0.001]
[1760728408128,13.86015691,3851.4,3851.3,0.001]
[1760728408330,12.75700091,3851.4,3851.3,0.001]
[1760728409205,17.50038291,3851.4,3851.3,0.001]
[1760728409404,15.17375191,3851.4,3851.3,0.001]
[1760728409933,11.47191491,3851.4,3851.3,0.001]
[1760728410117,12.66871391,3851.4,3851.3,0.001]
[1760728410593,12.71397395,3851.4,3851.3,0.001]
[1760728411095,17.04339395,3851.4,3851.3,0.001]
[1760728411609,10.44647295,3851.4,3851.3,0.001]
[1760728411822,9.89882095,3851.4,3851.3,0.001]
[1760728412208,6.42087595,3851.4,3851.3,0.001]
[1760728412738,10.79574095,3851.4,3851.3,0.001]
[1760728413121,8.82700495,3851.4,3851.3,0.001]
[1760728414196,20.24259795,3851.4,3851.3,0.001]
[1760728414896,19.15161895,3851.4,3851.3,0.001]
[1760728415092,13.45642295,3851.4,3851.3,0.001]
[1760728415321,10.19435895,3851.4,3851.3,0.001]
[1760728415510,10.29335895,3851.4,3851.3,0.001]
[1760728415708,10.19435895,3851.4,3851.3,0.001]
[1760728416204,28.17860995,3851.4,3851.3,0.001]
[1760728416394,26.03920095,3851.4,3851.3,0.001]
[1760728416918,22.09932395,3851.4,3851.3,0.001]
[1760728417431,3.69481752,3851.4,3851.3,0.001]
[1760728417731,0.45258834,3851.4,3851.3,0.4568]
[1760728417914,3.04904677,3851.4,3851.3,0.4568]
[1760728418114,2.59645843,3851.4,3851.3,0.4568]
[1760728418997,9.36142761,3851.4,3851.3,0.001]
[1760728419110,9.33542169,3851.4,3851.3,0.001]
[1760728419316,27.37770669,3851.4,3851.3,0.001]
[1760728419839,25.80792714,3851.4,3851.3,0.001]
[1760728420140,17.07229414,3851.4,3851.3,0.001]
[1760728420350,9.6547814,3851.4,3851.3,0.001]
[1760728420552,14.2250354,3851.4,3851.3,0.001]
[1760728420731,12.9568314,3851.4,3851.3,0.001]
[1760728421254,5.2965384,3851.4,3851.3,0.001]
[1760728421555,4.88119265,3851.4,3851.3,0.4568]
[1760728423647,2.28473422,3851.4,3851.3,0.4568]
[1760728423838,2.18059671,3851.4,3851.3,0.4568]
[1760728424235,1.77326126,3851.4,3851.3,0.4568]
[1760728424439,0.04526126,3851.4,3851.3,3.05332584]
[1760728424637,0.04526126,3851.4,3851.3,3.64273024]
[1760728425828,0.04526126,3851.4,3851.3,1.0462044]
[1760728426025,0.04526126,3851.4,3851.3,0.4568]
[1760728426469,0.04526126,3851.4,3851.3,3.05332584]
[1760728427955,0.04526126,3851.4,3851.3,0.4568]
[1760728428133,0.04526126,3851.4,3851.3,3.05332584]
[1760728428340,0.04526126,3851.4,3851.3,0.4568]
[1760728428539,0.04526126,3851.4,3851.3,3.05332584]
[1760728428857,0.002,3851.6,3851.3,0.4568]
[1760728429053,0.002,3851.6,3851.4,0.4558]
[1760728429259,0.002,3851.6,3851.4,3.05221513]
[1760728429756,0.002,3851.6,3851.5,0.4558]
[1760728430130,0.002,3851.6,3851.5,3.05219101]
[1760728430851,0.002,3851.6,3851.5,0.4558]
[1760728431044,0.002,3851.6,3851.5,0.78273507]
[1760728431565,0.002,3851.6,3851.5,0.4558]
[1760728432358,0.002,3851.6,3851.3,0.001]
[1760728432536,2.59645843,3851.4,3851.3,0.001]
[1760728432736,2.62246435,3851.4,3851.3,0.001]
[1760728433356,2.59645843,3851.4,3851.3,0.001]
[1760728433543,3.22056723,3851.4,3851.3,0.001]
[1760728433740,3.24657315,3851.4,3851.3,0.001]
[1760728434158,3.22056723,3851.4,3851.3,0.001]
[1760728434358,3.12046723,3851.4,3851.3,0.001]
[1760728435772,0.04725099,3851.6,3851.3,0.462]
[1760728435971,0.04725099,3851.6,3851.3,0.001]
[1760728436150,0.04725099,3851.6,3851.4,0.461]
[1760728436342,1.77525099,3851.6,3851.4,0.461]
[1760728436670,2.64359042,3851.6,3851.4,0.461]
[1760728436843,1.77525099,3851.6,3851.4,0.461]
[1760728438176,0.04725099,3851.6,3851.4,0.461]
[1760728438381,0.04725099,3851.6,3851.5,0.461]
[1760728438945,0.002,3851.6,3851.5,0.461]
[1760728439948,0.002,3851.6,3851.5,3.05739101]
[1760728440186,0.002,3851.6,3851.5,3.62288157]
[1760728442197,0.002,3851.6,3851.4,0.1306]
[1760728442493,0.002,3851.6,3851.4,0.5834]
[1760728442690,0.04725031,3851.6,3851.4,0.5834]
[1760728442895,0.04725031,3851.6,3851.4,3.17981692]
[1760728443266,0.04725031,3851.6,3851.4,0.4538]
[1760728443784,0.04725031,3851.6,3851.4,0.001]
[1760728444605,0.04725031,3851.6,3851.4,2.5974546]
[1760728444762,0.04725031,3851.6,3851.4,0.4538]
[1760728444964,0.04725031,3851.6,3851.5,2.59639101]
[1760728445268,0.04725031,3851.6,3851.5,3.17879101]
[1760728447792,0.04725031,3851.6,3851.5,3.20475492]
[1760728448968,0.04725031,3851.6,3851.5,3.17879101]
[1760728449588,0.04725031,3851.6,3851.5,3.04919101]
[1760728449771,0.002,3851.6,3851.5,3.77773446]
[1760728449967,0.002,3851.6,3851.5,3.80369837]
[1760728451470,0.002,3851.6,3851.5,3.77773446]
[1760728451868,0.002,3851.6,3851.5,2.72599101]
[1760728452072,0.002,3851.6,3851.5,0.1296]
[1760728452270,2.59639101,3851.5,3851.4,0.001]
[1760728452575,14.20900001,3851.5,3851.4,0.001]
[1760728452896,15.90269237,3851.5,3851.4,0.001]
[1760728453097,6.11818337,3851.5,3851.4,0.001]
[1760728453409,4.42449101,3851.5,3851.4,0.001]
[1760728453592,1.728,3851.5,3851.4,0.001]
[1760728454114,1.77325477,3851.5,3851.4,0.001]
[1760728454286,0.04525477,3851.5,3851.4,0.001]
[1760728454808,0.04525477,3851.5,3851.4,3.05025843]
[1760728454972,0.04525477,3851.5,3851.4,3.37716427]
[1760728455380,0.002,3851.6,3851.5,2.59639101]
[1760728455585,0.002,3851.6,3851.5,3.07515492]
[1760728456385,0.002,3851.6,3851.5,3.04919101]
[1760728456789,0.002,3851.6,3851.5,3.07515492]
[1760728456990,0.002,3851.6,3851.5,3.93486603]
[1760728457493,0.002,3851.6,3851.5,3.90890212]
[1760728457707,0.002,3851.6,3851.5,5.66286603]
[1760728457913,0.002,3851.6,3851.5,5.63690212]
[1760728458299,0.002,3852.1,3852.0,4.32405399]
[1760728458501,0.002,3852.1,3852.0,20.19732285]
[1760728458882,0.002,3852.1,3852.0,20.65012285]
[1760728459223,0.002,3852.5,3852.3,2.59585182]
[1760728459706,0.002,3852.5,3852.3,3.04865182]
[1760728460597,0.002,3852.5,3852.3,2.59585182]
[1760728461223,0.002,3852.5,3852.0,0.69201937]
[1760728461424,0.002,3852.5,3852.0,2.59605399]
[1760728461600,0.1053,3852.4,3851.6,2.5963236]
[1760728461804,0.002,3852.4,3852.1,2.59592672]
[1760728462201,0.002,3852.4,3851.9,0.1296]
[1760728462619,0.002,3852.4,3852.1,2.5959866]
[1760728462924,0.1033,3852.3,3851.9,0.1296]
[1760728463107,0.1033,3852.2,3851.9,0.1296]
[1760728463726,2.59778726,3852.4,3851.7,2.59623857]
[1760728464045,2.59778726,3852.4,3851.6,0.1296]
[1760728464046,0.1033,3852.1,3851.6,0.1296]
[1760728464224,0.2329,3852.0,3851.5,0.001]
[1760728464723,0.04524819,3852.1,3851.7,2.59625619]
[1760728464922,0.04524819,3852.1,3852.0,2.59605399]
[1760728465428,0.002,3852.4,3852.3,2.59585182]
[1760728465828,0.002,3852.4,3852.3,2.72545182]
[1760728466027,0.002,3852.4,3852.3,3.32533103]
[1760728466526,0.002,3852.4,3852.3,3.78073103]
[1760728467097,0.002,3852.4,3852.3,0.72947921]
[1760728467296,0.002,3852.4,3852.3,0.1296]
[1760728467541,2.781326,3852.4,3851.5,0.001]
[1760728467740,0.02600592,3852.3,3851.5,0.001]
[1760728467925,0.04525018,3852.2,3851.5,0.001]
[1760728468125,0.04525018,3852.2,3851.5,2.59737872]
[1760728468304,2.59592378,3852.2,3851.5,0.001]
[1760728468506,2.59587028,3852.3,3851.6,2.59630514]
[1760728468810,0.40916463,3852.4,3851.6,2.59630514]
[1760728469031,3.00495585,3852.4,3851.7,2.59625372]
[1760728469345,2.59585761,3852.3,3851.6,2.59630405]
[1760728469503,0.40916463,3852.4,3851.5,0.001]
[1760728469842,0.40916463,3852.4,3851.5,0.02696391]
[1760728470013,0.002,3852.4,3851.6,0.30808516]
[1760728470210,0.002,3852.4,3851.7,3.05160396]
[1760728470415,0.002,3852.4,3851.7,0.4554]
[1760728470725,0.002,3852.4,3852.1,2.59596972]
[1760728470926,0.002,3852.4,3851.7,3.05164666]
[1760728471124,0.002,3852.4,3851.7,3.35701133]
[1760728471335,0.002,3852.4,3851.8,2.59618879]
[1760728471504,0.002,3852.4,3852.1,2.59598625]
[1760728471823,0.002,3852.4,3852.0,2.59605269]
[1760728473124,0.002,3852.4,3851.7,0.76076467]
[1760728473125,0.002,3852.4,3852.1,2.59598529]
[1760728473301,0.002,3852.4,3852.3,2.59585182]
[1760728473504,0.002,3852.4,3852.1,2.59596415]
[1760728474237,0.002,3852.4,3852.0,2.59603876]
[1760728475015,0.002,3852.4,3851.9,2.59611362]
[1760728475218,0.002,3852.4,3851.9,2.5960617]
[1760728475426,0.002,3852.4,3852.0,2.59604196]
[1760728475829,0.002,3852.4,3852.1,2.59598449]
[1760728476154,0.002,3852.4,3852.0,2.59603919]
[1760728476448,0.002,3852.4,3851.9,2.59606593]
[1760728476654,0.101,3852.4,3851.9,2.59606593]
[1760728477115,0.101,3852.4,3852.0,2.59604892]
[1760728477316,0.002,3852.4,3852.0,2.59604892]
[1760728478154,0.002,3852.4,3851.9,2.72670308]
[1760728478364,2.69486084,3852.3,3851.9,0.001]
[1760728478649,0.2286,3852.2,3851.9,0.001]
[1760728479121,0.1296,3852.2,3851.9,0.001]
[1760728481232,0.2286,3852.2,3851.9,0.001]
[1760728482416,0.099,3852.1,3851.9,0.001]
[1760728482727,2.69498665,3852.1,3851.9,0.001]
[1760728482922,2.90451858,3852.0,3851.9,0.001]
[1760728483119,3.00351858,3852.0,3851.9,0.001]
[1760728483357,4.70551266,3852.0,3851.9,0.001]
[1760728483854,4.60651266,3852.0,3851.9,0.001]
[1760728484226,1.728,3852.0,3851.9,0.001]
[1760728484453,1.8576,3852.0,3851.9,0.001]
[1760728484653,0.101,3852.4,3852.0,2.5960158]
[1760728484654,0.002,3852.4,3852.0,2.5960158]
[1760728484954,0.1316,3852.4,3852.1,0.6774]
[1760728485556,2.59587514,3852.3,3851.9,0.001]
[1760728485851,0.1296,3852.2,3851.9,0.001]
[1760728486252,2.59605399,3852.0,3851.9,0.001]
[1760728486453,2.69500817,3852.1,3851.9,0.001]
[1760728486828,2.69505399,3852.0,3851.9,0.001]
[1760728487756,0.1296,3852.2,3851.9,0.001]
[1760728487957,0.1296,3852.2,3851.9,0.4564]
[1760728488455,0.1296,3852.2,3851.9,0.001]
[1760728488821,0.1296,3852.2,3851.9,0.4564]
[1760728489221,0.1296,3852.2,3851.9,0.001]
[1760728491856,0.17484781,3852.2,3851.9,0.001]
[1760728492032,2.59605399,3852.0,3851.9,0.001]
[1760728492232,3.14264161,3852.0,3851.9,0.001]
[1760728492428,4.96964161,3852.0,3851.9,0.001]
[1760728492628,2.27458762,3852.0,3851.9,0.001]
[1760728492833,4.32405399,3852.0,3851.9,0.001]
[1760728493758,1.728,3852.0,3851.9,0.001]
[1760728494531,4.32405399,3852.0,3851.9,0.001]
[1760728495929,1.728,3852.0,3851.9,0.001]
[1760728496130,0.04524781,3852.2,3851.9,0.001]
[1760728496331,2.77080899,3852.2,3851.9,0.001]
[1760728496530,1.90284781,3852.2,3851.9,0.001]
[1760728496767,0.17484781,3852.2,3852.0,0.455]
[1760728496972,0.002,3852.3,3852.0,0.76022562]
[1760728497374,0.002,3852.3,3852.1,0.6711]
[1760728497677,0.002,3852.3,3852.2,0.455]
[1760728498174,0.002,3852.3,3852.1,0.2161]
[1760728498333,0.002,3852.3,3852.2,3.05091921]
[1760728500439,0.002,3852.3,3852.2,2.59591921]
[1760728500644,0.002,3852.3,3852.2,3.05091921]
[1760728501240,0.002,3852.3,3852.2,3.63732626]
[1760728502566,0.002,3852.3,3852.2,3.66328545]
[1760728502768,0.002,3852.5,3852.4,2.59578444]
[1760728503080,0.002,3852.7,3852.4,2.59578444]
[1760728503081,0.002,3852.7,3852.6,2.59564969]
[1760728503576,0.002,3852.7,3852.6,3.06784969]
[1760728503737,0.002,3852.7,3852.6,4.06659829]
[1760728503936,0.002,3852.7,3852.6,4.09255478]
[1760728504155,0.002,3852.7,3852.6,4.06659829]
[1760728504470,0.04523399,3853.9,3852.8,2.59551495]
[1760728505044,0.04523399,3853.9,3852.8,3.06771495]
[1760728505256,0.04523399,3853.9,3852.8,3.73391954]
[1760728506370,1.9243,3854.5,3852.8,3.73391954]
[1760728506577,0.1963,3854.5,3852.8,3.73391954]
[1760728506869,0.04523109,3854.0,3853.9,2.59477412]
[1760728507073,0.40699972,3854.7,3854.3,2.59447291]
[1760728507369,0.40699972,3854.7,3854.0,2.59470679]
[1760728507570,0.101,3854.6,3854.1,2.59459592]
[1760728507765,0.101,3854.6,3854.2,2.59456378]
[1760728508373,1.728,3854.7,3854.2,2.59456378]
[1760728508538,0.101,3854.6,3854.1,2.59461767]
[1760728508746,0.101,3854.6,3854.0,2.5946983]
[1760728509060,1.829,3854.6,3854.0,2.5946983]
[1760728509445,0.04522892,3854.5,3854.1,2.59463759]
[1760728509650,0.14622892,3854.5,3854.1,2.59458534]
[1760728509838,0.04522892,3854.5,3854.0,2.59470679]